bitfinex/quotes_BTCUSD_20251010
["timestamp","ask_amount","ask_price","bid_price","bid_amount"]
[1760104648721,1e-08,121770.0,121760.0,2.1511554]
[1760104649309,1e-08,121770.0,121760.0,1.4845154]
[1760104649548,1e-08,121770.0,121760.0,1.44499542]
[1760104649741,1e-08,121770.0,121760.0,1.68419542]
[1760104649969,1e-08,121770.0,121760.0,1.78419541]
[1760104650376,1e-08,121770.0,121760.0,1.69871541]
[1760104650628,1e-08,121770.0,121760.0,1.54499541]
[1760104650822,1e-08,121770.0,121760.0,1.5699954]
[1760104651212,1e-08,121770.0,121760.0,1.8091554]
[1760104651618,1e-08,121770.0,121760.0,2.1510754]
[1760104652948,1e-08,121770.0,121760.0,1.9119154]
[1760104653358,1e-08,121770.0,121760.0,2.1510754]
[1760104653915,1e-08,121770.0,121760.0,1.9119154]
[1760104654057,1e-08,121770.0,121760.0,2.1510354]
[1760104656081,1e-08,121770.0,121760.0,2.01191539]
[1760104656293,1e-08,121770.0,121760.0,2.25103539]
[1760104657725,1e-08,121770.0,121760.0,2.54383716]
[1760104657944,1e-08,121770.0,121760.0,2.78291716]
[1760104658862,1e-08,121770.0,121760.0,2.54183716]
[1760104659097,1e-08,121770.0,121760.0,2.53983716]
[1760104659318,0.0076335,121820.0,121810.0,0.16419013]
[1760104659552,0.00778709,121820.0,121810.0,0.86090403]
[1760104659771,0.00778709,121820.0,121810.0,0.73739226]
[1760104660005,0.01034712,121820.0,121810.0,1.18383403]
[1760104660230,0.01034712,121820.0,121810.0,1.26927403]
[1760104660456,0.01034712,121820.0,121810.0,1.03023403]
[1760104660703,0.20888377,121820.0,121810.0,0.29912219]
[1760104660946,0.17452377,121820.0,121810.0,0.53816219]
[1760104661174,0.01034712,121820.0,121810.0,0.53816219]
[1760104661413,0.01034712,121820.0,121810.0,0.58992219]
[1760104661650,0.01034712,121820.0,121810.0,0.39483801]
[1760104661886,0.01034712,121820.0,121810.0,1.01219978]
[1760104662372,0.01034712,121820.0,121810.0,1.25023978]
[1760104662606,0.01034712,121820.0,121810.0,1.01119978]
[1760104662836,0.01034712,121820.0,121810.0,1.25023978]
[1760104663509,0.01034712,121820.0,121810.0,1.25019978]
[1760104663719,0.01034712,121820.0,121810.0,1.16475978]
[1760104663935,0.01034712,121820.0,121810.0,1.25019978]
[1760104664348,0.01034712,121820.0,121810.0,1.25826586]
[1760104664756,0.01034712,121820.0,121810.0,1.04941776]
[1760104664974,0.00271106,121820.0,121810.0,1.39041776]
[1760104665202,0.00271106,121820.0,121810.0,1.62941776]
[1760104665460,0.00271106,121820.0,121810.0,1.63976488]
[1760104665696,0.00271106,121820.0,121810.0,1.40076488]
[1760104665937,0.00271106,121820.0,121810.0,1.31532488]
[1760104666184,0.00271106,121820.0,121810.0,1.40076488]
[1760104666404,0.00271106,121820.0,121810.0,1.62937776]
[1760104666628,0.00271106,121820.0,121810.0,1.30497776]
[1760104666857,0.00271106,121820.0,121810.0,1.62937776]
[1760104667096,0.00271106,121820.0,121810.0,1.30497776]
[1760104667316,0.00271106,121820.0,121810.0,1.62937776]
[1760104667543,0.00271106,121820.0,121810.0,1.54393776]
[1760104667804,0.00271106,121820.0,121810.0,1.62937776]
[1760104668028,0.00271106,121820.0,121810.0,1.59922586]
[1760104668254,0.00271106,121820.0,121810.0,1.27482586]
[1760104668502,0.16688771,121820.0,121810.0,0.46033206]
[1760104669003,0.16688771,121820.0,121810.0,0.62452219]
[1760104669233,0.16688771,121820.0,121810.0,0.43632219]
[1760104669469,0.16688771,121820.0,121810.0,0.62448219]
[1760104669666,0.16688771,121820.0,121810.0,0.30012219]
[1760104669880,0.20124771,121820.0,121810.0,0.30012219]
[1760104670053,0.16688771,121820.0,121810.0,0.30012219]
[1760104670184,0.41316771,121820.0,121810.0,0.58706219]
[1760104670622,0.41316771,121820.0,121810.0,0.53904219]
[1760104671009,0.41316771,121820.0,121810.0,0.53804219]
[1760104671127,0.41316771,121820.0,121810.0,0.61803899]
[1760104671543,0.24899106,121820.0,121810.0,0.61803899]
[1760104671744,0.24899106,121820.0,121810.0,1.22813266]
[1760104671981,0.24899106,121820.0,121810.0,0.66605899]
[1760104672175,0.24899106,121820.0,121810.0,1.19798076]
[1760104672397,0.24899106,121820.0,121810.0,1.28342076]
[1760104672571,0.24899106,121820.0,121810.0,1.04450076]
[1760104672781,0.24899106,121820.0,121810.0,0.67150219]
[1760104673299,0.24899106,121820.0,121810.0,0.67250219]
[1760104673507,0.24899106,121820.0,121810.0,0.67150219]
[1760104673843,0.24899106,121820.0,121810.0,0.67146219]
[1760104674500,0.24899106,121820.0,121810.0,0.43258219]
[1760104674701,0.24899106,121820.0,121810.0,1.28338076]
[1760104674910,0.24899106,121820.0,121810.0,1.31353266]
[1760104675257,0.24899106,121820.0,121810.0,1.31453266]
[1760104675701,0.24899106,121820.0,121810.0,1.04450076]
[1760104675878,0.24899106,121820.0,121810.0,1.07465266]
[1760104676105,0.24899106,121820.0,121810.0,1.31353266]
[1760104676288,0.24899106,121820.0,121810.0,1.31453266]
[1760104676605,0.24899106,121820.0,121810.0,1.07565266]
[1760104676835,0.24899106,121820.0,121810.0,1.28438076]
[1760104677259,0.24899106,121820.0,121810.0,0.96106076]
[1760104677463,0.24899106,121820.0,121810.0,1.28538076]
[1760104680409,0.24899106,121820.0,121810.0,0.96106076]
[1760104680626,0.24899106,121820.0,121810.0,0.62540219]
[1760104680828,0.47236771,121820.0,121810.0,0.13693206]
[1760104681029,0.47236771,121820.0,121810.0,0.37573206]
[1760104681649,0.47236771,121820.0,121810.0,0.37373206]
[1760104681895,0.47236771,121820.0,121810.0,0.37473206]
[1760104682508,0.47236771,121820.0,121810.0,0.53792219]
[1760104683114,0.47236771,121820.0,121810.0,0.37373206]
[1760104683325,0.47236771,121820.0,121810.0,0.53792219]
[1760104683534,0.41316771,121820.0,121810.0,0.58504219]
[1760104683760,0.41316771,121820.0,121810.0,0.53792219]
[1760104684375,0.44518771,121820.0,121810.0,0.53792219]
[1760104684576,0.44518771,121820.0,121810.0,0.37373206]
[1760104684797,0.52034771,121820.0,121810.0,0.08312206]
[1760104684991,0.54337625,121820.0,121810.0,0.08312206]
[1760104685198,0.16419013,121810.0,121790.0,0.01868]
[1760104685401,0.16420361,121800.0,121790.0,0.01868]
[1760104685542,0.41048361,121800.0,121790.0,0.50477915]
[1760104685743,0.41201988,121800.0,121790.0,0.37492206]
[1760104686357,0.41201988,121800.0,121790.0,0.34056206]
[1760104686789,0.41201988,121800.0,121790.0,0.32188206]
[1760104687431,0.41201988,121800.0,121790.0,0.55069372]
[1760104687841,0.41201988,121800.0,121790.0,0.31293372]
[1760104688043,0.41201988,121800.0,121790.0,0.48709915]
[1760104688470,0.21808844,121800.0,121790.0,0.48709915]
[1760104688640,0.38229205,121800.0,121790.0,0.32288206]
[1760104689061,0.38229205,121800.0,121790.0,0.48709915]
[1760104689792,0.38229205,121800.0,121790.0,0.08412206]
[1760104689996,0.38229205,121800.0,121790.0,0.32288206]
[1760104691678,0.21808844,121800.0,121790.0,0.48705915]
[1760104692089,0.21808844,121800.0,121790.0,1.42784027]
[1760104692297,0.16652844,121800.0,121790.0,1.66656027]
[1760104692499,0.16652844,121800.0,121790.0,1.69122993]
[1760104692705,0.16652844,121800.0,121790.0,1.45250993]
[1760104692912,0.16652844,121800.0,121790.0,1.69122993]
[1760104693540,0.16652844,121800.0,121790.0,0.61300881]
[1760104693740,0.16652844,121800.0,121790.0,0.82805915]
[1760104693949,0.16652844,121800.0,121790.0,0.82705915]
[1760104694148,0.16652844,121800.0,121790.0,1.57127972]
[1760104694406,0.16652844,121800.0,121790.0,1.57227972]
[1760104694799,0.16652844,121800.0,121790.0,1.65127652]
[1760104695647,0.16652844,121800.0,121790.0,1.65227652]
[1760104695929,0.16652844,121800.0,121790.0,1.41355652]
[1760104696157,0.16652844,121800.0,121790.0,1.65223652]
[1760104696909,0.16652844,121800.0,121790.0,1.65023652]
[1760104697132,0.16652844,121800.0,121790.0,1.65123652]
[1760104697484,0.16652844,121800.0,121790.0,1.65223652]
[1760104698427,0.16652844,121800.0,121790.0,1.41355652]
[1760104698632,0.16652844,121800.0,121790.0,1.65223652]
[1760104698844,0.16652844,121800.0,121790.0,0.90801595]
[1760104699042,0.16652844,121800.0,121790.0,1.57223972]
[1760104699615,0.16652844,121800.0,121790.0,1.33355972]
[1760104699839,0.16652844,121800.0,121790.0,1.57223972]
[1760104700064,0.13818319,121820.0,121800.0,0.16419152]
[1760104700274,0.13818319,121820.0,121810.0,0.48599219]
[1760104700533,0.38447319,121820.0,121810.0,0.48599219]
[1760104700760,0.24731389,121820.0,121810.0,0.31233056]
[1760104700978,0.24731389,121820.0,121810.0,0.55097056]
[1760104701419,0.41149054,121820.0,121810.0,0.55097056]
[1760104702049,0.41149054,121820.0,121810.0,0.38678043]
[1760104702265,0.41149054,121820.0,121810.0,0.48595219]
[1760104708927,0.24731389,121820.0,121810.0,0.48595219]
[1760104709126,0.24731389,121820.0,121810.0,1.23017276]
[1760104709789,0.24731389,121820.0,121810.0,1.23009276]
[1760104710809,0.24564132,121820.0,121810.0,1.23009276]
[1760104710948,0.24564132,121820.0,121810.0,1.31008956]
[1760104712586,0.24564132,121820.0,121810.0,1.31108956]
[1760104712971,0.24564132,121820.0,121810.0,1.31208956]
[1760104713719,0.24564132,121820.0,121810.0,0.56786899]
[1760104713843,0.24564132,121820.0,121810.0,1.31208956]
[1760104714247,0.24564132,121820.0,121810.0,1.44368146]
[1760104714514,0.24564132,121820.0,121810.0,1.68220146]
[1760104714744,0.0002,121830.0,121820.0,0.53432855]
[1760104714916,0.0002,121830.0,121820.0,1.405627]
[1760104715477,0.0002,121830.0,121820.0,1.644107]
[1760104715726,0.0002,121830.0,121820.0,1.405627]
[1760104716056,0.0002,121830.0,121820.0,1.65320272]
[1760104716269,0.0002,121830.0,121820.0,1.65420272]
[1760104717130,0.0002,121830.0,121820.0,1.41529877]
[1760104717333,0.0002,121830.0,121820.0,1.65377877]
[1760104718282,0.0002,121830.0,121820.0,1.65373877]
[1760104720088,0.0002,121830.0,121820.0,1.41529877]
[1760104720269,0.0002,121830.0,121820.0,1.65373877]
[1760104720448,0.00071186,121830.0,121820.0,1.65373877]
[1760104720859,0.00071186,121830.0,121820.0,1.41529877]
[1760104721065,0.00071186,121830.0,121820.0,1.65369877]
[1760104721265,0.00071186,121830.0,121820.0,1.41529877]
[1760104721615,0.00071186,121830.0,121820.0,1.38514687]
[1760104721795,0.00071186,121830.0,121820.0,1.62354687]
[1760104723223,0.00071186,121830.0,121820.0,1.38514687]
[1760104723521,0.00071186,121830.0,121820.0,0.49537048]
[1760104724154,0.00071186,121830.0,121820.0,1.23959105]
[1760104725602,0.00071186,121830.0,121820.0,1.00119105]
[1760104726025,0.00071186,121830.0,121820.0,1.37134295]
[1760104726225,0.00071186,121830.0,121820.0,1.45133975]
[1760104728436,0.00071186,121830.0,121820.0,0.62712238]
[1760104728669,0.00071186,121830.0,121820.0,1.34119105]
[1760104728890,0.00071186,121830.0,121820.0,0.59697048]
[1760104729099,0.00071186,121830.0,121820.0,1.34119105]
[1760104732540,0.00071186,121830.0,121820.0,1.37134295]
[1760104732739,0.00071186,121830.0,121820.0,1.45133975]
[1760104734211,0.00071186,121830.0,121820.0,1.45462832]
[1760104734453,1e-08,121830.0,121820.0,1.55462831]
[1760104735226,1e-08,121830.0,121820.0,1.55362831]
[1760104735425,1e-08,121830.0,121820.0,1.45362832]
[1760104735631,1e-08,121830.0,121820.0,1.55462831]
[1760104736071,1e-08,121830.0,121820.0,0.81040774]
[1760104736577,1e-08,121830.0,121820.0,0.80940774]
[1760104737013,1e-08,121830.0,121820.0,0.71040775]
[1760104737283,1e-08,121830.0,121820.0,0.81040774]
[1760104737909,0.0002,121860.0,121850.0,0.16413623]
[1760104738135,0.00035087,121860.0,121850.0,0.29951569]
[1760104738319,0.00035087,121860.0,121850.0,0.28310207]
[1760104739873,0.00035087,121860.0,121850.0,0.34405373]
[1760104743685,0.00188601,121860.0,121850.0,0.34405373]
[1760104754692,0.16600877,121860.0,121850.0,0.08312206]
[1760104754925,0.00188601,121860.0,121850.0,0.24725829]
[1760104755145,0.16600877,121860.0,121850.0,0.24725829]
[1760104755370,0.16600877,121860.0,121850.0,0.08312206]
[1760104755835,0.16600877,121860.0,121850.0,0.24725829]
[1760104756075,0.16600877,121860.0,121850.0,0.08312206]
[1760104756303,0.00188601,121860.0,121850.0,0.24725829]
[1760104756539,0.00188601,121860.0,121850.0,0.28839891]
[1760104757221,0.00188601,121860.0,121850.0,0.24725829]
[1760104758777,0.16600877,121860.0,121850.0,0.24725829]
[1760104758985,0.00188601,121860.0,121850.0,0.24725829]
[1760104762646,0.00188601,121860.0,121850.0,0.27192221]
[1760104768335,0.16600877,121860.0,121850.0,0.27192221]
[1760104769947,0.00188601,121860.0,121850.0,0.27192221]
[1760104770145,0.16600877,121860.0,121850.0,0.10778598]
[1760104770352,0.16600877,121860.0,121850.0,0.27192221]
[1760104770561,0.16600877,121860.0,121850.0,0.24725829]
[1760104770977,0.16600877,121860.0,121850.0,0.27192276]
[1760104771591,0.00188601,121860.0,121850.0,0.24725829]
[1760104771800,0.00188601,121860.0,121850.0,0.28839891]
[1760104772003,0.00188601,121860.0,121850.0,0.31306338]
[1760104772505,0.00188601,121860.0,121850.0,0.27192276]
[1760104772713,0.16600877,121860.0,121850.0,0.27192276]
[1760104773164,0.00188601,121860.0,121850.0,0.27192276]
[1760104773371,0.00188601,121860.0,121850.0,0.10778653]
[1760104775296,0.00188601,121860.0,121850.0,0.08312206]
[1760104779732,0.00188601,121860.0,121850.0,0.09143427]
[1760104779937,0.00188601,121860.0,121850.0,0.08312206]
[1760104786471,0.00188601,121860.0,121850.0,0.10778383]
[1760104786703,0.00188601,121860.0,121850.0,0.12419745]
[1760104789641,0.00188601,121860.0,121850.0,0.10778383]
[1760104789844,0.00188601,121860.0,121850.0,0.08312206]
[1760104798595,0.01009214,121860.0,121830.0,0.02466564]
[1760104798843,0.008557,121860.0,121840.0,0.08312206]
[1760104800281,0.254757,121860.0,121840.0,0.08312206]
[1760104800522,0.24655087,121860.0,121840.0,0.09143427]
[1760104800752,0.00102351,121850.0,121840.0,0.09143427]
[1760104800977,0.24722351,121850.0,121840.0,0.09143427]
[1760104801203,0.24722351,121850.0,121840.0,0.08312206]
[1760104801456,0.04559008,121850.0,121840.0,0.08312206]
[1760104802406,0.04559008,121850.0,121840.0,0.08412206]
[1760104804841,0.04559008,121850.0,121840.0,0.08312206]
[1760104805290,0.04559008,121850.0,121840.0,0.09143427]
[1760104805923,0.04559008,121850.0,121840.0,0.08312206]
[1760104806357,0.04559008,121850.0,121840.0,0.09953703]
[1760104806575,0.04559008,121850.0,121840.0,0.11327396]
[1760104808092,0.04559008,121850.0,121840.0,0.11427396]
[1760104808311,0.04559008,121850.0,121840.0,0.13068893]
[1760104808523,0.04559008,121850.0,121840.0,0.17775782]
[1760104809220,0.04559008,121850.0,121840.0,0.16134285]
[1760104809440,0.04559008,121850.0,121840.0,0.50134285]
[1760104810714,0.04559008,121850.0,121840.0,0.60134284]
[1760104811332,0.04559008,121850.0,121840.0,0.60034284]
[1760104811791,0.04559008,121850.0,121840.0,0.60134284]
[1760104812204,0.04559008,121850.0,121840.0,0.60034284]
[1760104812425,0.04559008,121850.0,121840.0,0.60134284]
[1760104812663,0.04559008,121850.0,121840.0,0.60334284]
[1760104812888,0.04559008,121850.0,121840.0,0.62700147]
[1760104813101,0.04559008,121850.0,121840.0,0.62900147]
[1760104814390,0.04559008,121850.0,121840.0,0.59884957]
[1760104815281,0.04559008,121850.0,121840.0,0.62900147]
[1760104816009,0.04559008,121850.0,121840.0,0.52900148]
[1760104816216,0.04559008,121850.0,121840.0,0.11178069]
[1760104816430,0.04559008,121850.0,121840.0,0.14193259]
[1760104817074,0.04559008,121850.0,121840.0,0.13993259]
[1760104817301,0.04559008,121850.0,121840.0,0.14093259]
[1760104817720,0.04559008,121850.0,121840.0,0.13893259]
[1760104817939,0.04559008,121850.0,121840.0,0.10978069]
[1760104818177,0.04559008,121850.0,121840.0,0.15382585]
[1760104818646,0.04559008,121850.0,121840.0,0.15182585]
[1760104818883,0.04559008,121850.0,121840.0,0.15282585]
[1760104819089,0.04559008,121850.0,121840.0,0.15382585]
[1760104819318,0.04559008,121850.0,121840.0,0.15182585]
[1760104819531,0.04559008,121850.0,121840.0,0.49182585]
[1760104819740,0.04559008,121850.0,121840.0,0.49382585]
[1760104820379,0.04559008,121850.0,121840.0,0.49482585]
[1760104820796,0.04559008,121850.0,121840.0,0.49282585]
[1760104821670,0.04559008,121850.0,121840.0,0.49182585]
[1760104822095,0.04559008,121850.0,121840.0,0.49282585]
[1760104822520,0.04559008,121850.0,121840.0,0.49182585]
[1760104822959,0.04559008,121850.0,121840.0,0.49482585]
[1760104823204,0.04559008,121850.0,121840.0,0.49382585]
[1760104823408,0.04559008,121850.0,121840.0,0.49482585]
[1760104823615,0.04559008,121850.0,121840.0,0.49282585]
[1760104825151,0.04559008,121850.0,121840.0,0.49382585]
[1760104826909,0.35610365,121900.0,121850.0,0.3701519]
[1760104827161,0.00820411,121890.0,121860.0,0.08312206]
[1760104829795,0.35660643,121900.0,121870.0,0.00820546]
[1760104830032,0.001,121890.0,121880.0,0.08312206]
[1760104830256,0.24613,121890.0,121880.0,0.08312206]
[1760104830473,0.24613,121890.0,121880.0,0.0938959]
[1760104833058,0.24613,121890.0,121880.0,0.10208692]
[1760104833277,0.24613,121890.0,121880.0,0.62278091]
[1760104833500,0.24817618,121890.0,121880.0,0.77046716]
[1760104835280,0.24817618,121890.0,121880.0,0.29733465]
[1760104835500,0.24817618,121890.0,121880.0,0.24821789]
[1760104835726,0.24817618,121890.0,121880.0,0.33361789]
[1760104838110,0.24817618,121890.0,121880.0,0.8369023]
[1760104838355,0.24817618,121890.0,121880.0,0.8359023]
[1760104838584,0.24817618,121890.0,121880.0,1.2558991]
[1760104839448,0.24817618,121890.0,121880.0,1.2568991]
[1760104839905,0.24817618,121890.0,121880.0,1.28155266]
[1760104840119,0.24817618,121890.0,121880.0,1.28055266]
[1760104840338,0.24817618,121890.0,121880.0,1.51751266]
[1760104840555,0.24817618,121890.0,121880.0,1.51851266]
[1760104841010,0.24817618,121890.0,121880.0,1.77471266]
[1760104841225,0.24817618,121890.0,121880.0,1.86011266]
[1760104841442,0.24817618,121890.0,121880.0,1.19615266]
[1760104841661,0.24817618,121890.0,121880.0,1.86011266]
[1760104842131,0.24817618,121890.0,121880.0,1.85911266]
[1760104842574,0.24817618,121890.0,121880.0,1.62319266]
[1760104843019,0.24817618,121890.0,121880.0,1.86111266]
[1760104843240,0.24817618,121890.0,121880.0,1.86011266]
[1760104843710,0.24817618,121890.0,121880.0,1.19715266]
[1760104843936,0.24817618,121890.0,121880.0,1.86107266]
[1760104844398,0.24817618,121890.0,121880.0,1.19715266]
[1760104844630,0.24817618,121890.0,121880.0,1.43403266]
[1760104844861,0.24817618,121890.0,121880.0,1.86103266]
[1760104845088,0.24817618,121890.0,121880.0,1.43403266]
[1760104845318,0.24817618,121890.0,121880.0,1.86103266]
[1760104846230,0.24817618,121890.0,121880.0,1.84374075]
[1760104847164,0.24817618,121890.0,121880.0,1.84174075]
[1760104847388,0.24817618,121890.0,121880.0,1.84274075]
[1760104847868,0.24817618,121890.0,121880.0,1.60486075]
[1760104848094,0.24817618,121890.0,121880.0,1.84270075]
[1760104848315,0.24817618,121890.0,121880.0,1.60586075]
[1760104848540,0.24817618,121890.0,121880.0,1.84270075]
[1760104848757,0.24817618,121890.0,121880.0,1.84370075]
[1760104848981,0.35660643,121900.0,121890.0,0.53423426]
[1760104849219,0.12075916,121900.0,121890.0,0.76131213]
[1760104849442,0.0002,121930.0,121920.0,0.16404199]
[1760104849696,0.0003508,121930.0,121920.0,0.94111595]
[1760104850348,0.0003508,121930.0,121920.0,0.70431595]
[1760104850563,0.0003508,121930.0,121920.0,0.94111595]
[1760104850791,0.0003508,121930.0,121920.0,1.02111275]
[1760104851315,0.0003508,121930.0,121920.0,1.02211275]
[1760104852209,0.0003508,121930.0,121920.0,0.35831275]
[1760104852427,0.0003508,121930.0,121920.0,0.68043275]
[1760104853115,0.0003508,121930.0,121920.0,0.68143275]
[1760104853628,0.0003508,121930.0,121920.0,0.68043275]
[1760104854303,0.0003508,121930.0,121920.0,0.7421244]
[1760104854524,0.0003508,121930.0,121920.0,0.7431244]
[1760104854999,0.00239597,121930.0,121920.0,0.8463644]
[1760104855221,1e-08,121930.0,121920.0,1.31949691]
[1760104855675,1e-08,121930.0,121920.0,1.55621691]
[1760104855893,1e-08,121930.0,121920.0,1.55521691]
[1760104856566,1e-08,121930.0,121920.0,1.89777691]
[1760104856780,1e-08,121930.0,121920.0,1.23313691]
[1760104857005,1e-08,121930.0,121920.0,1.89573691]
[1760104857224,1e-08,121930.0,121920.0,1.89873691]
[1760104857471,1e-08,121930.0,121920.0,1.23513691]
[1760104857688,1e-08,121930.0,121920.0,1.47081691]
[1760104857902,1e-08,121930.0,121920.0,1.47181691]
[1760104858117,1e-08,121930.0,121920.0,1.89869691]
[1760104858802,1e-08,121930.0,121920.0,1.89669691]
[1760104859053,1e-08,121930.0,121920.0,1.89998251]
[1760104859497,1e-08,121930.0,121920.0,1.90098251]
[1760104860377,1e-08,121930.0,121920.0,1.66430251]
[1760104860607,1e-08,121930.0,121920.0,0.6541413]
[1760104860862,1e-08,121930.0,121920.0,0.23217371]
[1760104861094,0.17167259,121930.0,121920.0,0.17048206]
[1760104861328,0.17167259,121930.0,121920.0,0.33452405]
[1760104861329,0.00764405,121930.0,121920.0,0.33452405]
[1760104861562,0.00764405,121930.0,121920.0,0.57116405]
[1760104862011,0.00764405,121930.0,121920.0,0.57016405]
[1760104862227,0.17167259,121930.0,121920.0,0.16948206]
[1760104862469,0.17167259,121930.0,121920.0,0.17048206]
[1760104862680,0.17167259,121930.0,121920.0,0.40708206]
[1760104862908,0.17167259,121930.0,121920.0,0.08412206]
[1760104863135,0.56055657,121930.0,121920.0,0.001]
[1760104863809,0.56055657,121930.0,121900.0,0.08536]
[1760104863810,0.50405545,121910.0,121900.0,0.08536]
[1760104864048,0.16408236,121890.0,121880.0,0.15155503]
[1760104864266,0.43315161,121890.0,121880.0,0.23099503]
[1760104864489,0.50409583,121880.0,121870.0,0.00136819]
[1760104864711,0.76552104,121880.0,121870.0,0.09544819]
[1760104864925,0.77316036,121880.0,121870.0,0.00136819]
[1760104865420,0.78126788,121880.0,121870.0,0.00187097]
[1760104865854,0.78124051,121880.0,121870.0,0.00187097]
[1760104866299,0.86123731,121880.0,121870.0,0.00187097]
[1760104866756,7.52279758,121880.0,121870.0,1e-08]
[1760104866973,7.75939758,121880.0,121870.0,1e-08]
[1760104867192,7.86233069,121880.0,121870.0,1e-08]
[1760104867423,7.92531005,121880.0,121870.0,1e-08]
[1760104867642,8.0915783,121880.0,121870.0,1e-08]
[1760104868098,7.38876887,121880.0,121870.0,1e-08]
[1760104868321,8.04841519,121880.0,121870.0,1e-08]
[1760104868549,7.60335005,121880.0,121870.0,1e-08]
[1760104868772,7.92535005,121880.0,121870.0,1e-08]
[1760104869038,7.61071325,121880.0,121870.0,1e-08]
[1760104869277,7.96945839,121880.0,121870.0,1e-08]
[1760104869487,7.73181839,121880.0,121870.0,1e-08]
[1760104869711,7.92645247,121880.0,121870.0,1e-08]
[1760104869927,7.74874412,121880.0,121870.0,1e-08]
[1760104870142,7.60538732,121880.0,121870.0,1e-08]
[1760104870359,7.50538733,121880.0,121870.0,1e-08]
[1760104870579,7.26874733,121880.0,121870.0,1e-08]
[1760104870798,7.36774732,121880.0,121870.0,1e-08]
[1760104871021,7.50442733,121880.0,121870.0,1e-08]
[1760104871245,7.68638412,121880.0,121870.0,1e-08]
[1760104871465,7.88638413,121880.0,121870.0,1e-08]
[1760104871690,7.98638412,121880.0,121870.0,1e-08]
[1760104871909,7.98438412,121880.0,121870.0,1e-08]
[1760104872127,8.00644927,121880.0,121870.0,1e-08]
[1760104872362,7.77180927,121880.0,121870.0,1e-08]
[1760104872601,6.08544357,121830.0,121820.0,1e-08]
[1760104872904,0.16417665,121820.0,121810.0,0.029325]
[1760104873195,1.17826705,121820.0,121810.0,0.02947587]
[1760104873395,0.41030665,121820.0,121810.0,0.02947587]
[1760104873555,0.94158705,121820.0,121810.0,0.02947587]
[1760104873766,6.56826705,121820.0,121810.0,0.02947587]
[1760104873971,6.60430803,121820.0,121810.0,0.02947587]
[1760104874396,6.70255525,121820.0,121810.0,0.02947587]
[1760104874601,6.45075009,121820.0,121810.0,0.02947587]
[1760104874802,6.74070702,121820.0,121810.0,1e-08]
[1760104875001,6.76570701,121820.0,121810.0,1e-08]
[1760104875482,6.75058198,121820.0,121810.0,1e-08]
[1760104875883,6.21930158,121820.0,121810.0,1e-08]
[1760104876087,6.51390198,121820.0,121810.0,1e-08]
[1760104876242,6.75062198,121820.0,121810.0,1e-08]
[1760104876632,6.75162198,121820.0,121810.0,1e-08]
[1760104876837,6.51490198,121820.0,121810.0,1e-08]
[1760104877052,6.75162198,121820.0,121810.0,1e-08]
[1760104877919,6.51590198,121820.0,121810.0,1e-08]
[1760104878119,6.75162198,121820.0,121810.0,1e-08]
[1760104878520,6.75262198,121820.0,121810.0,1e-08]
[1760104878947,6.85262197,121820.0,121810.0,1e-08]
[1760104879619,5.39,121780.0,121760.0,0.06619503]
[1760104879822,5.99024446,121770.0,121760.0,0.06634606]
[1760104880024,6.23637446,121770.0,121760.0,0.01356606]
[1760104880234,5.46837406,121770.0,121760.0,0.01356606]
[1760104880475,0.41837406,121770.0,121760.0,0.01356606]
[1760104880679,0.65509406,121770.0,121760.0,0.01356606]
[1760104880886,0.41837406,121770.0,121760.0,0.01356606]
[1760104881096,0.59413,121770.0,121760.0,0.17782361]
[1760104881305,0.24613,121770.0,121760.0,0.87222287]
[1760104881515,0.24613,121770.0,121760.0,0.95766287]
[1760104881734,0.24613,121770.0,121760.0,1.19442287]
[1760104881937,0.24613,121770.0,121760.0,0.85880784]
[1760104882145,0.24613,121770.0,121760.0,1.10101104]
[1760104882553,0.41037406,121770.0,121760.0,0.81126104]
[1760104882765,0.49292406,121770.0,121760.0,0.08327309]
[1760104883381,0.49292406,121770.0,121760.0,0.32003309]
[1760104883584,0.31653226,121770.0,121760.0,0.08327309]
[1760104883790,0.31653226,121770.0,121760.0,0.32003309]
[1760104884403,0.34082226,121770.0,121760.0,0.08327309]
[1760104885955,0.34082226,121770.0,121760.0,0.32003309]
[1760104886180,0.34082226,121770.0,121760.0,0.08327309]
[1760104886406,0.68082226,121770.0,121760.0,0.00015103]
[1760104886625,6.61213662,121770.0,121760.0,1e-08]
[1760104886832,6.63713661,121770.0,121760.0,1e-08]
[1760104887045,6.71713341,121770.0,121760.0,1e-08]
[1760104887927,6.48037341,121770.0,121760.0,1e-08]
[1760104888198,6.71713341,121770.0,121760.0,1e-08]
[1760104888417,6.8322625,121770.0,121760.0,1e-08]
[1760104888869,6.5955025,121770.0,121760.0,1e-08]
[1760104889084,6.3009821,121770.0,121760.0,1e-08]
[1760104889764,6.0652221,121770.0,121760.0,1e-08]
[1760104889978,6.06854512,121770.0,121760.0,1e-08]
[1760104890200,1.69071683,121740.0,121710.0,0.06659503]
[1760104890417,6.11788193,121720.0,121710.0,0.06709862]
[1760104890628,6.22027013,121720.0,121710.0,0.06709862]
[1760104890863,0.68888973,121720.0,121710.0,0.06709862]
[1760104891744,0.68888973,121720.0,121710.0,0.00090359]
[1760104892018,0.50433853,121700.0,121690.0,0.0004]
[1760104892250,5.21435204,121690.0,121680.0,0.0004]
[1760104892467,0.16440608,121650.0,121640.0,0.06659503]
[1760104892684,0.18868256,121660.0,121640.0,0.20203709]
[1760104892899,0.0940282,121660.0,121640.0,0.97011749]
[1760104893118,0.0697382,121660.0,121650.0,0.77880854]
[1760104893565,0.0697382,121660.0,121650.0,0.81436854]
[1760104893788,0.0697382,121660.0,121650.0,0.70069246]
[1760104894009,0.0697382,121660.0,121650.0,0.28308814]
[1760104894235,0.0697382,121660.0,121650.0,0.86509854]
[1760104894450,0.0697382,121660.0,121650.0,1.10193854]
[1760104894666,0.0697382,121660.0,121650.0,0.86509854]
[1760104894877,0.0697382,121660.0,121650.0,1.10193854]
[1760104895099,0.0697382,121660.0,121650.0,0.86509854]
[1760104895320,0.0697382,121660.0,121650.0,1.84652764]
[1760104895534,0.0697382,121660.0,121650.0,1.02080684]
[1760104895786,0.0697382,121660.0,121650.0,2.18860764]
[1760104896021,0.0697382,121660.0,121650.0,2.42744764]
[1760104896238,0.0697382,121660.0,121650.0,2.43212798]
[1760104896446,0.12869601,121720.0,121700.0,0.16433853]
[1760104896664,0.06634554,121720.0,121710.0,0.83415749]
[1760104896874,0.00015051,121720.0,121710.0,1.12176749]
[1760104897113,0.00015051,121720.0,121710.0,1.20728749]
[1760104897980,0.16446204,121720.0,121710.0,0.46095206]
[1760104898193,0.19092204,121720.0,121710.0,0.83415749]
[1760104898431,0.02661051,121720.0,121710.0,1.15655749]
[1760104898653,0.19092204,121720.0,121710.0,0.66983246]
[1760104898871,0.19092204,121720.0,121710.0,0.83415749]
[1760104899074,0.22361204,121720.0,121710.0,1.12099749]
[1760104899280,0.22361204,121720.0,121710.0,0.16864206]
[1760104899281,0.27300204,121720.0,121710.0,0.16864206]
[1760104899491,0.27300204,121720.0,121710.0,0.08312206]
[1760104899731,0.31937807,121720.0,121710.0,0.08312206]